[Event "44th Chess Olympiad Open 2022"]
[Site "Chennai"]
[Date "2022.08.03"]
[Round "6.52"]
[White "Naser Eldean, Ahmed"]
[Black "Meddeb, Anis"]
[Result "0-1"]
[WhiteElo "1941"]
[BlackElo "2121"]
[Annotator "NA RC"]
[PlyCount "84"]
[EventDate "2022.??.??"]
[TimeControl "60"]

1. d4 {[%emt 0:00:05]} d5 {[%emt 0:00:05]} 2. Nf3 {[%emt 0:00:07]} e6 {[%emt 0:
00:00]} 3. g3 {[%emt 0:00:08]} Nf6 {[%emt 0:00:51]} 4. Bg2 {[%emt 0:00:14]} Be7
{[%emt 0:01:04]} 5. O-O {[%emt 0:00:11]} Ne4 {[%emt 0:03:58]} 6. c4 {[%emt 0:
00:00]} O-O {[%emt 0:02:42]} 7. Nc3 {[%emt 0:00:32]} f5 {[%emt 0:01:04]} 8. Ne5
{[%emt 0:01:35]} Nc6 {[%emt 0:02:20]} 9. cxd5 {[%emt 0:07:29]} exd5 {[%emt 0:
00:00]} 10. Nxc6 {[%emt 0:00:43]} bxc6 {[%emt 0:00:07]} 11. f3 {[%emt 0:00:44]}
Nxc3 {[%emt 0:03:08]} 12. bxc3 {[%emt 0:00:08]} Ba6 {[%emt 0:00:46]} 13. f4 {
[%emt 0:01:02]} Re8 {[%emt 0:02:50]} 14. Re1 {[%emt 0:05:10]} Bf8 {[%emt 0:00:
00]} 15. Qc2 {[%emt 0:12:25]} g6 {[%emt 0:03:07]} 16. Rb1 {[%emt 0:00:08]} Rb8
{[%emt 0:00:44]} 17. Rxb8 {[%emt 0:00:20]} Qxb8 {[%emt 0:00:02]} 18. e3 {
[%emt 0:00:22]} Qb6 {[%emt 0:02:34]} 19. g4 {[%emt 0:02:20]} Bc8 {[%emt 0:00:
00]} 20. c4 {[%emt 0:07:46]} Be6 {[%emt 0:06:44]} 21. gxf5 {[%emt 0:02:48]}
Bxf5 {[%emt 0:00:38]} 22. Qb3 {[%emt 0:00:25]} Qxb3 {[%emt 0:18:49]} 23. axb3 {
[%emt 0:00:08]} Bb4 {[%emt 0:00:48]} 24. Re2 {[%emt 0:03:39]} Rd8 {[%emt 0:00:
00]} 25. Ra2 {[%emt 0:01:59]} a5 {[%emt 0:00:28]} 26. Bd2 {[%emt 0:03:27]} Bb1
{[%emt 0:02:22]} 27. Rb2 {[%emt 0:00:50]} Bd3 {[%emt 0:03:08]} 28. cxd5 {
[%emt 0:05:06]} cxd5 {[%emt 0:00:20]} 29. Bxb4 {[%emt 0:00:07]} axb4 {[%emt 0:
00:00]} 30. Ra2 {[%emt 0:00:17]} c6 {[%emt 0:00:34]} 31. Bf1 {[%emt 0:04:40]}
Be4 {[%emt 0:01:04]} 32. Kf2 {[%emt 0:01:15]} Rc8 {[%emt 0:01:42]} 33. Bh3 {
[%emt 0:01:40]} Rc7 {[%emt 0:00:19]} 34. Ra8+ {[%emt 0:00:29]} Kf7 {[%emt 0:00:
00]} 35. Rb8 {[%emt 0:03:48]} Ra7 {[%emt 0:00:53]} 36. Rxb4 {[%emt 0:10:21]}
Ra2+ {[%emt 0:00:12]} 37. Kg3 {[%emt 0:05:11]} Re2 {[%emt 0:00:17]} 38. Bd7 {
[%emt 0:01:17]} Rxe3+ {[%emt 0:00:22]} 39. Kg4 {[%emt 0:05:43]} h6 {[%emt 0:00:
00]} 40. f5 {[%emt 0:01:59]} g5 {[%emt 0:02:11]} 41. Rb7 {[%emt 0:41:47]} Kf6 {
[%emt 0:39:32]} 42. h4 {[%emt 0:00:11]} Bc2 {[%emt 0:02:11]} 0-1

[Event "44th Chess Olympiad Open 2022"]
[Site "Chennai"]
[Date "2022.08.03"]
[Round "6.53"]
[White "Berend, Elvira"]
[Black "Ortega Amarelle, Mariano"]
[Result "0-1"]
[WhiteElo "2333"]
[BlackElo "2463"]
[Annotator "TA"]
[PlyCount "76"]
[EventDate "2022.??.??"]
[TimeControl "60"]

{[%evp 9,76,1,1,0,0,13,-12,3,31,8,6,11,0,0,13,0,5,0,0,0,0,0,0,0,2,-22,0,0,14,
-284,-290,-285,-216,-294,-297,-286,-290,-360,-359,-370,-376,-511,-490,-484,
-501,-460,-410,-387,-404,-513,-433,-439,-440,-437,-425,-428,-420,-410,-423,
-470,-464,-512,-486,-512,-512,-1420,-565,-575,-490]} 1. d4 {[%emt 0:00:03]} Nf6
{[%emt 0:00:10]} 2. Nf3 {[%emt 0:00:09]} e6 {[%emt 0:00:34]} 3. Bg5 {[%emt 0:
00:00][%cal Yc1g5,Yg5h4,Yh4g3]} h6 {[%emt 0:03:52]} 4. Bh4 {[%emt 0:00:00]} d6
{[%emt 0:14:59]} 5. e3 {[%emt 0:01:08]} g5 {[%emt 0:00:09]} 6. Bg3 {[%emt 0:00:
09] A46:1 d4 Nf6 2 Nf3 e6: Torre, London and Colle Systems.} Nh5 {[%emt 0:00:
13]} 7. c4 {[%emt 0:03:32]} Bg7 {[%emt 0:00:15]} 8. Nc3 {[%emt 0:00:00] The
position is equal.} Nd7 {[%emt 0:00:55]} 9. Nd2 {[%emt 0:03:04]} Ndf6 {[%emt 0:
03:55]} 10. Be2 {[%emt 0:02:09]} Nxg3 {[%emt 0:00:11]} 11. hxg3 {[%emt 0:00:31]
[#]} b6 $146 {[%emt 0:24:49]} ({Predecessor:} 11... Qe7 12. Qc2 Bd7 13. Bf3
O-O-O 14. Qb3 c6 15. Qa3 Kb8 16. O-O-O e5 {1-0 (37) Tovmasian,V (2436)
-Polivanov,A (2413) Lvov 2012}) 12. Bf3 {[%emt 0:05:15]} d5 {[%emt 0:00:00]}
13. cxd5 {[%emt 0:25:38]} exd5 {[%emt 0:00:24]} 14. Qa4+ {[%emt 0:00:10]} Bd7 {
[%emt 0:03:27]} 15. Qc2 {[%emt 0:04:43]} c6 {[%emt 0:15:02][%cal Yc7c6,Yc6c5,
Yc5d4]} 16. Be2 {[%emt 0:02:55]} O-O {[%emt 0:09:26][%cal Yh8f8,Yf8e8,Ye8e4]}
17. Bd3 {[%emt 0:07:44]} Qc8 {[%emt 0:07:12]} 18. Nf3 {[%emt 0:00:58]} c5 {
[%emt 0:04:09]} 19. Nxg5 $2 {[%emt 0:10:15] Loses the game.} cxd4 $19 {[%emt 0:
00:30] [#] Discovered Attack} ({Stronger than} 19... hxg5 20. Bh7+ Kh8 21. Be4+
Kg8 22. Bh7+ (22. Nxd5 Re8 $17) 22... Kh8 23. Be4+ Kg8 24. Bh7+ $11 (24. Nxd5
Re8 $17)) 20. Bh7+ {[%emt 0:00:00]} Kh8 {[%emt 0:00:08]} 21. exd4 {[%emt 0:00:
10]} Re8+ {[%emt 0:00:41]} ({Not} 21... hxg5 22. Bf5+ Kg8 23. Bh7+ Kh8 24. Bf5+
Kg8 25. Bh7+ Kh8 $11) 22. Kf1 {[%emt 0:00:28][%cal Rg5f7]} hxg5 {[%emt 0:00:27]
} 23. Bd3+ {[%emt 0:01:53]} Kg8 {[%emt 0:00:11][%cal Yf6e4]} 24. Qd2 {[%emt 0:
00:02]} Bf5 {[%emt 0:04:31]} 25. Bb5 {[%emt 0:00:23]} Ne4 {[%emt 0:00:07]} 26.
Nxe4 {[%emt 0:00:12]} Rxe4 {[%emt 0:00:08]} ({Worse is} 26... Bxe4 27. Bxe8
Qxe8 28. b3 $17) 27. Qxg5 {[%emt 0:00:08]} Rxd4 {[%emt 0:01:56]} 28. Rh4 {
[%emt 0:01:16]} Re4 {[%emt 0:00:00]} 29. g4 {[%emt 0:04:54]} Rxg4 {[%emt 0:01:
35]} 30. Rxg4 {[%emt 0:00:06]} Bxg4 {[%emt 0:00:05][%cal Yf5g4,Yg4e6,Ye6c4]}
31. Qxd5 {[%emt 0:00:14]} Rb8 {[%emt 0:01:08]} 32. Qd6 {[%emt 0:02:12]} Qd8 {
[%emt 0:00:42]} 33. Qf4 {[%emt 0:00:41]} Be6 {[%emt 0:00:07]} 34. Re1 {[%emt 0:
00:04] Black is clearly winning.} Rc8 {[%emt 0:00:18]} 35. a4 {[%emt 0:00:40]}
Qd4 {[%emt 0:00:37]} 36. Qg5 {[%emt 0:01:42]} Rc2 {[%emt 0:00:39][%csl Gc2]
[%cal Rd4f2] [#]} 37. Re2 {[%emt 0:01:00]} (37. Qg3 $142) 37... Rxe2 {[%emt 0:
01:02]} (37... Bc4 $142 {( -> ...Qd1#)} 38. Bxc4 Qxc4 39. Qd8+ Kh7) 38. Bxe2 {
[%emt 0:00:05]} Bc4 {[%emt 0:00:16] Weighted Error Value: White=0.55/Black=0.
19 (very precise)} 0-1

[Event "44th Chess Olympiad Open 2022"]
[Site "Chennai"]
[Date "2022.08.03"]
[Round "6.53"]
[White "Gengler, Pierre"]
[Black "Teixeira, Gil"]
[Result "1-0"]
[WhiteElo "2194"]
[BlackElo "1741"]
[Annotator "NA RC"]
[PlyCount "61"]
[EventDate "2022.??.??"]
[TimeControl "60"]

1. g3 {[%emt 0:00:03]} d5 {[%emt 0:00:26]} 2. Bg2 {[%emt 0:00:05]} c6 {[%emt 0:
00:00]} 3. d3 {[%emt 0:00:05]} Bf5 {[%emt 0:00:42]} 4. Nd2 {[%emt 0:00:05]} Nf6
{[%emt 0:00:50]} 5. e4 {[%emt 0:00:05]} Bg4 {[%emt 0:01:42]} 6. Ne2 {[%emt 0:
00:00]} e5 {[%emt 0:00:11]} 7. h3 {[%emt 0:00:18]} Be6 {[%emt 0:00:25]} 8. O-O
{[%emt 0:00:41]} Bc5 {[%emt 0:00:22]} 9. exd5 {[%emt 0:04:03]} cxd5 {[%emt 0:
00:00]} 10. d4 {[%emt 0:00:44]} Bd6 {[%emt 0:02:28]} 11. dxe5 {[%emt 0:01:05]}
Bxe5 {[%emt 0:00:19]} 12. Nf3 {[%emt 0:00:11]} Nc6 {[%emt 0:00:50]} 13. Nxe5 {
[%emt 0:01:35]} Nxe5 {[%emt 0:00:18]} 14. Nf4 {[%emt 0:01:42]} O-O {[%emt 0:00:
00]} 15. Re1 {[%emt 0:00:55]} Qb8 {[%emt 0:00:29]} 16. Nxe6 {[%emt 0:00:11]}
fxe6 {[%emt 0:00:58]} 17. Bf4 {[%emt 0:00:07]} Nfd7 {[%emt 0:00:32]} 18. h4 {
[%emt 0:05:20]} Rxf4 {[%emt 0:01:07]} 19. gxf4 {[%emt 0:00:08]} Ng6 {[%emt 0:
00:00]} 20. f5 {[%emt 0:03:53]} Nxh4 {[%emt 0:00:48]} 21. fxe6 {[%emt 0:00:42]}
Nf6 {[%emt 0:02:50]} 22. Qd4 {[%emt 0:01:39]} Nxg2 {[%emt 0:00:50]} 23. Kxg2 {
[%emt 0:00:15]} Qe8 {[%emt 0:00:25]} 24. Re3 {[%emt 0:02:00]} Qg6+ {[%emt 0:00:
00]} 25. Rg3 {[%emt 0:00:37]} Qf5 {[%emt 0:00:36]} 26. Re1 {[%emt 0:00:17]} Nh5
{[%emt 0:03:42]} 27. Re5 {[%emt 0:04:06]} Nxg3 {[%emt 0:02:22]} 28. Qxd5 {
[%emt 0:01:40]} Qg6 {[%emt 0:00:31]} 29. e7+ {[%emt 0:00:18]} Kh8 {[%emt 0:00:
00]} 30. Qd8+ {[%emt 0:00:19]} Qe8 {[%emt 0:00:23]} 31. Qxa8 {[%emt 0:00:08]}
1-0

[Event "44th Chess Olympiad Open 2022"]
[Site "Chennai"]
[Date "2022.08.03"]
[Round "6.53"]
[White "Mirulla, David"]
[Black "Schartz, Alain"]
[Result "0-1"]
[WhiteElo "1953"]
[BlackElo "2086"]
[Annotator "NA RC"]
[PlyCount "79"]
[EventDate "2022.??.??"]
[TimeControl "60"]

1. e4 {[%emt 0:00:06]} c5 {[%emt 0:00:06]} 2. Nf3 {[%emt 0:00:09]} d6 {[%emt 0:
00:00]} 3. d4 {[%emt 0:00:10]} cxd4 {[%emt 0:00:08]} 4. Nxd4 {[%emt 0:00:10]}
Nf6 {[%emt 0:00:13]} 5. Nc3 {[%emt 0:00:10]} a6 {[%emt 0:00:13]} 6. h3 {
[%emt 0:00:26]} e5 {[%emt 0:01:42]} 7. Nb3 {[%emt 0:00:34]} Be6 {[%emt 0:03:15]
} 8. g4 {[%emt 0:03:49]} Nc6 {[%emt 0:04:18]} 9. g5 {[%emt 0:10:32]} Nd7 {
[%emt 0:00:28]} 10. Be3 {[%emt 0:06:10]} Nb6 {[%emt 0:04:59]} 11. Qf3 {[%emt 0:
00:00]} Nc4 {[%emt 0:04:44]} 12. Bxc4 {[%emt 0:04:35]} Bxc4 {[%emt 0:00:09]}
13. Nd5 {[%emt 0:10:25]} Bxd5 {[%emt 0:01:25]} 14. exd5 {[%emt 0:00:11]} Na5 {
[%emt 0:02:45]} 15. Qe4 {[%emt 0:06:11]} Nxb3 {[%emt 0:01:19]} 16. axb3 {
[%emt 0:01:27]} Be7 {[%emt 0:01:09]} 17. h4 {[%emt 0:03:39]} Qd7 {[%emt 0:00:
00]} 18. h5 {[%emt 0:05:11]} f5 {[%emt 0:05:54]} 19. gxf6 {[%emt 0:00:18]} Bxf6
{[%emt 0:01:24]} 20. Rg1 {[%emt 0:02:42]} Rc8 {[%emt 0:07:37]} 21. Rg3 {
[%emt 0:01:50]} Qf7 {[%emt 0:02:50]} 22. O-O-O {[%emt 0:05:10]} h6 {[%emt 0:00:
00]} 23. Rg6 {[%emt 0:01:49]} Qe7 {[%emt 0:10:36]} 24. Rdg1 {[%emt 0:02:55]}
Rf8 {[%emt 0:02:13]} 25. Qg4 {[%emt 0:08:19]} Rd8 {[%emt 0:01:17]} 26. f4 {
[%emt 0:03:08]} Qd7 {[%emt 0:02:06]} 27. Qg2 {[%emt 0:03:37]} Qf5 {[%emt 0:00:
00]} 28. Re1 {[%emt 0:01:35]} Kf7 {[%emt 0:03:59]} 29. fxe5 {[%emt 0:00:49]}
dxe5 {[%emt 0:00:38]} 30. Rg3 {[%emt 0:01:49]} Qxh5 {[%emt 0:04:45]} 31. Rh1 {
[%emt 0:00:29]} Qf5 {[%emt 0:00:18]} 32. d6 {[%emt 0:00:25]} Qd7 {[%emt 0:00:
00]} 33. Bb6 {[%emt 0:00:18]} Rc8 {[%emt 0:01:46]} 34. Bc7 {[%emt 0:00:21]} Qc6
{[%emt 0:00:58]} 35. Qh3 {[%emt 0:00:52]} Rfd8 {[%emt 0:04:55]} 36. Qh5+ {
[%emt 0:00:38]} Kf8 {[%emt 0:00:28]} 37. Rc3 {[%emt 0:00:28]} Qd5 {[%emt 0:00:
00]} 38. Rf1 {[%emt 0:00:28]} Qg2 {[%emt 0:06:02]} 39. Qf5 {[%emt 0:00:33]} Rd7
{[%emt 0:30:45]} 40. Rg3 {[%emt 0:00:06]} 0-1

[Event "44th Chess Olympiad Open 2022"]
[Site "Chennai"]
[Date "2022.08.03"]
[Round "6.53"]
[White "Fortes, Aires"]
[Black "Steil-Antoni, Fiona"]
[Result "0-1"]
[WhiteElo "1508"]
[BlackElo "2218"]
[Annotator "TA"]
[PlyCount "54"]
[EventDate "2022.??.??"]
[TimeControl "60"]

{[%evp 9,54,34,44,50,48,47,50,22,31,36,54,43,49,43,53,43,61,66,60,64,97,71,298,
293,546,83,93,78,91,89,77,51,60,0,0,0,0,0,49,0,-6,-174,0,0,0,-18,-14]} 1. e4 {
[%emt 0:07:30]} g6 {[%emt 0:00:07]} 2. d4 {[%emt 0:00:22]} Bg7 {[%emt 0:00:06]}
3. Nf3 {[%emt 0:00:59]} d6 {[%emt 0:00:14]} 4. Bc4 {[%emt 0:01:28]} e6 {
[%emt 0:01:23]} 5. O-O {[%emt 0:00:56]} Ne7 {[%emt 0:00:35]} 6. Bf4 {[%emt 0:
00:00] B06: Modern Defence.} h6 {[%emt 0:01:49]} 7. h3 {[%emt 0:04:30]} O-O {
[%emt 0:00:35]} 8. Nc3 {[%emt 0:02:32] White is slightly better.} a6 {[%emt 0:
00:00] [#]} 9. Ne2 $146 {[%emt 0:01:33]} ({Predecessor:} 9. a4 b6 10. Qe2 Bb7
11. Rad1 Nd7 12. Rfe1 Nf6 13. Bb3 Kh7 14. Bh2 Nd7 15. Qd2 {0-1 (37) Zadravec,M
(2157)-Loncar,R (2404) Podturen 2019}) 9... b5 {[%emt 0:00:49]} 10. Bd3 {
[%emt 0:00:27]} Bb7 {[%emt 0:01:05]} 11. Ng3 {[%emt 0:01:25]} f5 {[%emt 0:00:
00]} 12. Qd2 {[%emt 0:09:06]} g5 {[%emt 0:03:48] [#]} 13. Bxg5 {[%emt 0:01:42]}
hxg5 {[%emt 0:00:22]} 14. Nxg5 {[%emt 0:01:46]} Qd7 {[%emt 0:03:07]} 15. Qe2 {
[%emt 0:00:49]} Bxd4 $2 {[%emt 0:15:29]} (15... Rf6 $16 {was necessary.}) 16.
Qh5 $18 {[%emt 0:01:19][%csl Gg5][%cal Rh5h7]} Nc8 $2 {[%emt 0:16:35]} (16...
Nd5) 17. Qg6+ $2 {[%emt 0:00:48]} (17. exf5 $18 Qg7 18. fxe6) 17... Qg7 $16 {
[%emt 0:01:11]} 18. Qxe6+ {[%emt 0:07:48]} Kh8 {[%emt 0:01:06] [#]} 19. h4 {
[%emt 0:01:48]} (19. Nxf5 Qxg5 20. Nxd4 Ne7 $17) 19... Bf6 {[%emt 0:07:39]} (
19... Bxb2 $2 20. Nh5 Rf6 {[#]} 21. Qb3 $1 $18) 20. Nh5 {[%emt 0:12:43]} (20.
Nxf5 Qd7 $11) (20. Rae1 $5 {[%cal Re4f5]}) 20... Qe7 {[%emt 0:01:07]} 21. exf5
{[%emt 0:11:04]} (21. Nf4 $14 Qxe6 22. Nfxe6 fxe4 23. Bxe4 (23. Nxf8 exd3 24.
Nfe6 dxc2 $11) 23... Bxe4 24. Nxf8) 21... Bxg5 $11 {[%emt 0:03:33]} 22. hxg5 {
[%emt 0:04:14]} Qxg5 {[%emt 0:00:53][%csl Gb7][%cal Rg5g2] Really sharp!} 23.
Ng3 {[%emt 0:00:25][%cal Yf5f6] Strongly threatening f6!} Ne7 {[%emt 0:06:18]}
(23... Qg7 $11 {feels stronger.}) 24. Rae1 {[%emt 0:11:42]} (24. f6 $1 $14 Ng8
25. f7) 24... Nbc6 {[%emt 0:03:23] And now ...Ne5 would win.} 25. Ne4 $2 {
[%emt 0:08:53]} (25. Qd7 $1 $11 {and White has nothing to worry.}) 25... Qg8 $2
{[%emt 0:01:20]} (25... Qxf5 $2 26. Qh6+ Qh7 27. Qxh7+ Kxh7 28. Nxd6+ Kg7 29.
Nxb7 $18) ({Black should play} 25... Qh4 $19 {White must now prevent ...Nd4.}
26. f6 Nd5 27. Nxd6 (27. Qxd5 $2 Ne5 $19) 27... Nd4) 26. Qh6+ {[%emt 0:03:19]}
Qh7 {[%emt 0:00:01]} 27. Qxh7+ {[%emt 0:00:45]} Kxh7 {[%emt 0:00:02] Black
escapes into a draw. Weighted Error Value: White=0.45/Black=0.45. Sensor Board
Error (Ke4/e5)?} 0-1

[Event "44th Chess Olympiad Open 2022"]
[Site "Chennai"]
[Date "2022.08.03"]
[Round "6.54"]
[White "Dias, Vanderson"]
[Black "Belzo, Krzysztof"]
[Result "1/2-1/2"]
[WhiteElo "2139"]
[BlackElo "2080"]
[Annotator "NA RC"]
[PlyCount "130"]
[EventDate "2022.??.??"]
[TimeControl "60"]

1. e4 {[%emt 0:00:04]} c5 {[%emt 0:00:04]} 2. Nf3 {[%emt 0:00:20]} Nc6 {
[%emt 0:00:13]} 3. d4 {[%emt 0:01:23]} cxd4 {[%emt 0:00:22]} 4. Nxd4 {[%emt 0:
00:00]} d5 {[%emt 0:00:07]} 5. Nxc6 {[%emt 0:01:51]} bxc6 {[%emt 0:00:05]} 6.
exd5 {[%emt 0:00:31]} Qxd5 {[%emt 0:00:12]} 7. Nc3 {[%emt 0:07:32]} Qxd1+ {
[%emt 0:01:32]} 8. Nxd1 {[%emt 0:00:05]} e5 {[%emt 0:01:12]} 9. Bc4 {[%emt 0:
00:00]} Nf6 {[%emt 0:00:53]} 10. O-O {[%emt 0:00:14]} Bd6 {[%emt 0:00:48]} 11.
Nc3 {[%emt 0:01:09]} O-O {[%emt 0:18:35]} 12. Bg5 {[%emt 0:01:16]} Bf5 {
[%emt 0:03:49]} 13. Bxf6 {[%emt 0:07:50]} gxf6 {[%emt 0:00:03]} 14. Bd3 {
[%emt 0:00:11]} Be6 {[%emt 0:03:05]} 15. Ne4 {[%emt 0:00:27]} Be7 {[%emt 0:00:
00]} 16. Ng3 {[%emt 0:00:24]} Rab8 {[%emt 0:09:22]} 17. b3 {[%emt 0:00:43]}
Rfd8 {[%emt 0:06:26]} 18. Rad1 {[%emt 0:02:37]} a5 {[%emt 0:12:58]} 19. f4 {
[%emt 0:11:53]} Bg4 {[%emt 0:15:36]} 20. Rb1 {[%emt 0:05:04]} Bc5+ {[%emt 0:00:
00]} 21. Kh1 {[%emt 0:00:07]} h5 {[%emt 0:08:06]} 22. h3 {[%emt 0:00:58]} Be6 {
[%emt 0:04:27]} 23. Nxh5 {[%emt 0:01:47]} Be7 {[%emt 0:00:38]} 24. Rbe1 {
[%emt 0:07:41]} Rd5 {[%emt 0:03:20]} 25. fxe5 {[%emt 0:03:37]} Rxe5 {[%emt 0:
00:00]} 26. Ng3 {[%emt 0:04:40]} a4 {[%emt 0:04:03]} 27. Rxe5 {[%emt 0:22:08]}
fxe5 {[%emt 0:00:05]} 28. Bf5 {[%emt 0:00:31]} Bxf5 {[%emt 0:02:57]} 29. Nxf5 {
[%emt 0:00:23]} Bg5 {[%emt 0:00:17]} 30. h4 {[%emt 0:00:47]} Bd2 {[%emt 0:00:
00]} 31. Rf2 {[%emt 0:06:28]} axb3 {[%emt 0:00:13]} 32. axb3 {[%emt 0:00:07]}
Be1 {[%emt 0:00:30]} 33. Re2 {[%emt 0:00:21]} Bc3 {[%emt 0:00:12]} 34. g3 {
[%emt 0:01:53]} c5 {[%emt 0:00:40]} 35. Kg2 {[%emt 0:00:38]} c4 {[%emt 0:00:32]
} 36. bxc4 {[%emt 0:00:34]} Rb4 {[%emt 0:00:12]} 37. Ne7+ {[%emt 0:07:59]} Kf8
{[%emt 0:00:08]} 38. Nd5 {[%emt 0:00:40]} Rxc4 {[%emt 0:00:09]} 39. Nxc3 {
[%emt 0:00:15]} Rxc3 {[%emt 0:00:03]} 40. Rxe5 {[%emt 0:00:35]} Rxc2+ {[%emt 0:
00:00]} 41. Kh3 {[%emt 0:30:00]} f6 {[%emt 0:31:31]} 42. Rb5 {[%emt 0:01:16]}
Kg7 {[%emt 0:02:15]} 43. h5 {[%emt 0:00:54]} Rc4 {[%emt 0:01:31]} 44. Rb6 {
[%emt 0:01:27]} Ra4 {[%emt 0:00:00]} 45. g4 {[%emt 0:00:00]} Ra7 {[%emt 0:00:
00]} 46. Rb5 {[%emt 0:00:00]} Ra3+ {[%emt 0:00:00]} 47. Kh4 {[%emt 0:00:00]}
Ra7 {[%emt 0:00:00]} 48. Kg3 {[%emt 0:00:00]} Ra4 {[%emt 0:00:00]} 49. Rb7+ {
[%emt 0:00:00]} Kg8 {[%emt 0:00:00]} 50. h6 {[%emt 0:00:00]} Rc4 {[%emt 0:00:
00]} 51. Rg7+ {[%emt 0:00:00]} Kf8 {[%emt 0:00:00]} 52. Rg6 {[%emt 0:00:00]}
Kf7 {[%emt 0:00:00]} 53. Rg7+ {[%emt 0:00:00]} Kf8 {[%emt 0:00:00]} 54. Rd7 {
[%emt 0:00:00]} Kg8 {[%emt 0:00:00]} 55. Rd6 {[%emt 0:00:00]} Kf7 {[%emt 0:00:
00]} 56. Rd7+ {[%emt 0:00:00]} Kg8 {[%emt 0:00:00]} 57. h7+ {[%emt 0:00:00]}
Kh8 {[%emt 0:00:00]} 58. Rf7 {[%emt 0:00:00]} Rb4 {[%emt 0:00:06]} 59. Kh4 {
[%emt 0:00:00]} f5 {[%emt 0:00:57]} 60. Rxf5 {[%emt 0:00:00]} Kxh7 {[%emt 0:00:
00]} 61. Kh5 {[%emt 0:00:00]} Kg7 {[%emt 0:00:33]} 62. Rd5 {[%emt 0:00:00]} Rb6
{[%emt 0:01:51]} 63. Rd7+ {[%emt 0:00:00]} Kg8 {[%emt 0:00:13]} 64. g5 {
[%emt 0:00:00]} Ra6 {[%emt 0:00:07]} 65. g6 {[%emt 0:00:00]} Ra1 {[%emt 0:00:
00]} 1/2-1/2

[Event "44th Chess Olympiad Open 2022"]
[Site "Chennai"]
[Date "2022.08.03"]
[Round "6.54"]
[White "Lutuima, Amaro"]
[Black "Forbes, Garry"]
[Result "1-0"]
[WhiteElo "2048"]
[BlackElo "1908"]
[Annotator "NA RC"]
[PlyCount "57"]
[EventDate "2022.??.??"]
[TimeControl "60"]

1. e4 {[%emt 0:00:33]} g6 {[%emt 0:00:03]} 2. d4 {[%emt 0:00:19]} Bg7 {[%emt 0:
00:00]} 3. c4 {[%emt 0:00:15]} d6 {[%emt 0:00:03]} 4. Nc3 {[%emt 0:00:17]} Nf6
{[%emt 0:00:06]} 5. Bd3 {[%emt 0:00:20]} a6 {[%emt 0:03:47]} 6. Nge2 {[%emt 0:
00:00]} Nbd7 {[%emt 0:06:34]} 7. f4 {[%emt 0:02:06]} c5 {[%emt 0:06:05]} 8. d5
{[%emt 0:04:10]} b5 {[%emt 0:04:41]} 9. cxb5 {[%emt 0:02:54]} axb5 {[%emt 0:00:
00]} 10. Bxb5 {[%emt 0:00:42]} O-O {[%emt 0:01:01]} 11. O-O {[%emt 0:00:48]}
Ba6 {[%emt 0:03:25]} 12. Bc6 {[%emt 0:01:45]} Rb8 {[%emt 0:02:19]} 13. h3 {
[%emt 0:03:22]} Ne8 {[%emt 0:28:51]} 14. Re1 {[%emt 0:04:33]} Nc7 {[%emt 0:00:
00]} 15. Qc2 {[%emt 0:04:01]} Bxe2 {[%emt 0:07:24]} 16. Rxe2 {[%emt 0:00:55]}
e6 {[%emt 0:06:46]} 17. a4 {[%emt 0:03:31]} exd5 {[%emt 0:03:51]} 18. exd5 {
[%emt 0:00:45]} Na6 {[%emt 0:02:00]} 19. Nb5 {[%emt 0:01:05]} Nb4 {[%emt 0:00:
00]} 20. Qc4 {[%emt 0:00:28]} Nb6 {[%emt 0:02:37]} 21. Qb3 {[%emt 0:00:02]} Qf6
{[%emt 0:07:58]} 22. Qf3 {[%emt 0:02:42]} h5 {[%emt 0:01:12]} 23. Kh2 {[%emt 0:
00:00]} Nc8 {[%emt 0:00:56]} 24. Bd2 {[%emt 0:00:27]} Qxb2 {[%emt 0:00:35]} 25.
Rae1 {[%emt 0:00:38]} Qf6 {[%emt 0:00:34]} 26. Bc3 {[%emt 0:00:36]} Qd8 {
[%emt 0:00:30]} 27. Re8 {[%emt 0:00:13]} Rxe8 {[%emt 0:00:49]} 28. Rxe8+ {
[%emt 0:00:26]} Qxe8 {[%emt 0:00:00]} 29. Bxe8 {[%emt 0:00:20]} 1-0

[Event "44th Chess Olympiad Open 2022"]
[Site "Chennai"]
[Date "2022.08.03"]
[Round "6.54"]
[White "Carpenter, Paul A"]
[Black "Silva, David"]
[Result "0-1"]
[WhiteElo "1938"]
[BlackElo "2315"]
[Annotator "TA"]
[PlyCount "48"]
[EventDate "2022.??.??"]
[TimeControl "60"]

{[%evp 9,48,-8,-8,-31,-18,-26,-29,-78,-75,-69,-54,-90,-81,-74,-27,-89,-28,-90,
-38,-81,-77,-366,-353,-347,-337,-335,-329,-328,-371,-658,-641,-646,-641,-646,
-637,-1557,-1516,-1527,-1466,-1941,-589]} 1. e4 {[%emt 0:00:06]} c5 {[%emt 0:
00:00]} 2. d3 {[%emt 0:01:10]} Nc6 {[%emt 0:00:40]} 3. Nd2 {[%emt 0:01:53]} g6
{[%emt 0:00:09]} 4. c3 {[%emt 0:00:35]} Bg7 {[%emt 0:00:17]} 5. Ngf3 {[%emt 0:
00:00]} d6 {[%emt 0:01:24][%cal Yd7d6,Yd6d5]} 6. h3 {[%emt 0:01:26] B20:
Sicilian: Unusual White 2nd moves.} Nf6 {[%emt 0:00:18]} 7. Be2 {[%emt 0:00:00]
} O-O {[%emt 0:00:03]} 8. g4 {[%emt 0:12:53]} (8. O-O $11) 8... d5 $17 {
[%emt 0:03:04]} 9. Qc2 {[%emt 0:15:54]} e5 {[%emt 0:03:48]} 10. Nf1 {[%emt 0:
00:00] [#]} Be6 $146 {[%emt 0:01:59]} ({Predecessor:} 10... d4 11. Ng3 Be6 12.
Ng5 Bd7 13. f4 Qc7 14. f5 dxc3 15. bxc3 c4 16. dxc4 Rfd8 {1-0 (44) Damia,A 
(2338)-Codenotti,M (2119) Milan 2009}) 11. Ng3 {[%emt 0:01:13]} Rc8 {[%emt 0:
00:00]} (11... d4 $17) 12. Rg1 {[%emt 0:02:18] [#]} (12. g5 $1 $11 Ne8 13. h4)
12... Kh8 {[%emt 0:01:50]} ({Better is} 12... d4 $1 $17) 13. Bg5 {[%emt 0:00:
00]} (13. g5 $11 {keeps the balance.} Ne8 14. exd5 Qxd5 15. h4) 13... b5 {
[%emt 0:02:31]} (13... d4 $17) 14. Qc1 {[%emt 0:09:45]} d4 {[%emt 0:01:22]} 15.
Nxe5 $2 {[%emt 0:13:06] White does not recover from this.} Nxe5 $19 {[%emt 0:
01:46]} 16. f4 {[%emt 0:01:03]} h6 {[%emt 0:05:28]} 17. fxe5 {[%emt 0:00:00]}
hxg5 {[%emt 0:00:15]} 18. exf6 {[%emt 0:00:29]} Qxf6 {[%emt 0:00:04]} 19. e5 $2
{[%emt 0:04:41]} (19. Rf1 Qe5 20. Kf2) 19... Qxe5 {[%emt 0:00:24] [#] White
must now prevent ...c4. Black is clearly winning.} 20. Ne4 {[%emt 0:00:00]}
dxc3 {[%emt 0:00:13]} 21. bxc3 {[%emt 0:03:00]} c4 {[%emt 0:00:10] aiming for .
..cxd3.} 22. h4 {[%emt 0:02:18]} cxd3 {[%emt 0:01:14]} 23. Bxd3 {[%emt 0:00:00]
} Bd5 {[%emt 0:00:12] This bishop pair is nice.} 24. Qxg5 {[%emt 0:01:27]} Rfe8
{[%emt 0:00:19] Weighted Error Value: White=1.21/Black=0.10 (very precise)} (
24... f5 $142 25. Rd1 Bxe4) 0-1